lending/lending_fUSD_20250429
["ID","MTS","AMOUNT","RATE_DAILY","PERIOD"]
[359299580,1745901033786,500.0,0.00038356,30]
[359299581,1745901033869,470.0,0.00038356,30]
[359299582,1745901034172,500.0,0.00038356,30]
[359299583,1745901034421,500.0,0.00038356,30]
[359299584,1745901034526,611.23,0.00038356,30]
[359299585,1745901034626,470.0,0.00038356,30]
[359299586,1745901034678,500.0,0.00038356,30]
[359299587,1745901034897,500.0,0.00038356,30]
[359299588,1745901035143,500.0,0.00038356,30]
[359299589,1745901035418,437.97038353,0.00038356,30]
[359299590,1745901035475,470.0,0.00038356,30]
[359299591,1745901035596,470.0,0.00038356,30]
[359299592,1745901036269,470.0,0.00038356,30]
[359299593,1745901037621,470.0,0.00038356,30]
[359299594,1745901037690,568.5,0.00038356,30]
[359299596,1745901038002,-27.10161425,0.0001999,2]
[359299597,1745901038010,-300.0,0.00019998,2]
[359299598,1745901038018,-812.0,0.00019998,2]
[359299599,1745901038027,-200.0,0.00019999,2]
[359299600,1745901038037,-300.0,0.00019999,2]
[359299601,1745901038046,-505.77793732,0.00019999,2]
[359299602,1745901038057,-587086.89768177,0.0002,2]
[359299603,1745901038068,-213.649672,0.0002,2]
[359299604,1745901038079,-151.0,0.0002,2]
[359299605,1745901038089,-151.0,0.0002,2]
[359299606,1745901038100,-151.0,0.0002,2]
[359299607,1745901038115,-239.373633,0.0002,2]
[359299608,1745901038126,-151.0,0.0002,2]
[359299609,1745901038136,-239.373633,0.0002,2]
[359299610,1745901038146,-151.0,0.0002,2]
[359299611,1745901038156,-2000.0,0.0002,4]
[359299612,1745901038167,-190.60160865,0.0002001,2]
[359299613,1745901038177,-200.0,0.00020379,2]
[359299614,1745901038188,-218.18,0.00020885,2]
[359299616,1745901038198,-350.0,0.00021,2]
[359299618,1745901038208,-420.0,0.00021776,2]
[359299619,1745901038218,-4787.36457856,0.000218,3]
[359299620,1745901038228,-4787.36457844,0.000218,3]
[359299621,1745901038239,-250.0,0.00021813,2]
[359299622,1745901038249,-200.0,0.00021813,2]
[359299623,1745901038260,-250.0,0.00021813,2]
[359299624,1745901038270,-6128.20891224,0.00021934,2]
[359299625,1745901038280,-200.0,0.00021998,2]
[359299626,1745901038290,-250.0,0.00021998,2]
[359299627,1745901038300,-2000.0,0.00022,4]
[359299628,1745901038310,-599.86423584,0.00022244,2]
[359299629,1745901038320,-4787.36457844,0.00022624,4]
[359299630,1745901038331,-200.0,0.00022627,2]
[359299631,1745901038341,-4787.36457844,0.00023486,4]
[359299632,1745901038352,-587.0,0.00023711,2]
[359299633,1745901038362,-6128.20891224,0.00023968,2]
[359299634,1745901038372,-5000.00801157,0.00024,5]
[359299635,1745901038383,-2000.0,0.00024,4]
[359299636,1745901038393,-159.96,0.00024152,2]
[359299637,1745901038403,-151.0,0.00024348,7]
[359299638,1745901038413,-151.0,0.00024348,7]
[359299639,1745901038423,-222.701096,0.00024348,7]
[359299640,1745901038433,-151.0,0.00024348,7]
[359299641,1745901038443,-151.0,0.00024348,7]
[359299642,1745901038453,-151.0,0.00024348,7]
[359299643,1745901038463,-4787.36457844,0.00024348,5]
[359299644,1745901038473,-599.86423584,0.00024589,2]
[359299645,1745901038483,-503.02969115,0.00024773,2]
[359299646,1745901038494,-500.0,0.00024773,2]
[359299647,1745901038504,-549.061159,0.0002479,2]
[359299648,1745901038514,-300.0,0.00024799,10]
[359299649,1745901038524,-500.0,0.00024799,2]
[359299650,1745901038534,-152.85,0.00024799,2]
[359299651,1745901038544,-152.85,0.00024799,2]
[359299652,1745901038558,-724699.10997887,0.000248,2]
[359299653,1745901038573,-501336.18932206,0.000248,2]
[359299654,1745901038591,-299.25,0.000248,2]
[359299655,1745901038787,3281.79,0.00038356,30]
[359299656,1745901038839,549.46,0.00038356,30]
[359299657,1745901038893,470.0,0.00038356,30]
[359299658,1745901038952,470.0,0.00038356,30]
[359299659,1745901039782,470.0,0.00038356,30]
[359299660,1745901039913,470.0,0.00038356,30]
[359299661,1745901039951,-3409.19214653,0.000248,2]
[359299662,1745901040160,-96922.50206341,0.000248,2]
[359299663,1745901040171,-152.799001,0.000248,7]
[359299664,1745901040182,-239.373633,0.000248,7]
[359299665,1745901040192,-239.373633,0.000248,7]
[359299666,1745901040202,-500.0,0.00024899,2]
[359299667,1745901040212,-598126.52803,0.000249,2]
[359299668,1745901040223,-239.373633,0.000249,7]
[359299669,1745901040234,-239.373633,0.000249,7]
[359299670,1745901040245,-207.4,0.0002505,2]
[359299671,1745901040255,-4787.36457844,0.0002521,5]
[359299672,1745901040266,-239.373633,0.00025442,7]
[359299673,1745901040276,-239.373633,0.00025442,7]
[359299674,1745901040288,-28482.2156205,0.00025442,2]
[359299675,1745901040301,-1000.0,0.00025452,2]
[359299676,1745901040312,-1000.0,0.00025452,2]
[359299677,1745901040323,-1000.0,0.00025452,2]
[359299678,1745901040338,-159.96,0.00025481,2]
[359299679,1745901040350,-823.0,0.00025819,2]
[359299680,1745901040360,-2000.0,0.00026,4]
[359299681,1745901040371,-6128.20891224,0.00026002,2]
[359299682,1745901040382,-4787.36457844,0.00026072,6]
[359299683,1745901040393,-215.0738,0.00026419,2]
[359299684,1745901040404,-159.96,0.0002681,2]
[359299685,1745901040414,-599.86423584,0.00026933,2]
[359299686,1745901040427,-4787.36457844,0.00026934,7]
[359299687,1745901040439,-318.0,0.00027,2]
[359299688,1745901040745,-249.35668102,0.00027324,2]
[359299689,1745901040757,-500.0,0.00027397,2]
[359299690,1745901040769,-514.30640187,0.00027397,2]
[359299691,1745901040779,-154.295726,0.00027397,7]
[359299692,1745901040791,-549.34,0.00027397,2]
[359299693,1745901040802,-300.0,0.00027397,2]
[359299694,1745901040812,-251.05216898,0.00027762,2]
[359299695,1745901040821,-223.0315306,0.00027788,2]
[359299696,1745901040832,-4787.36457844,0.00027797,7]
[359299697,1745901040842,-2000.0,0.00028,4]
[359299698,1745901040851,-6128.20891224,0.00028036,2]
[359299699,1745901040861,-1152.0,0.00028114,2]
[359299700,1745901040872,-159.96,0.00028139,2]
[359299701,1745901040883,-4787.36457844,0.00028659,8]
[359299702,1745901040893,-151.0,0.00028659,7]
[359299703,1745901040903,-151.0,0.00028659,7]
[359299704,1745901040912,-159.478928,0.00028659,7]
[359299705,1745901040922,-500.0,0.00028999,2]
[359299706,1745901040934,-75086.97641804,0.00029,2]
[359299707,1745901040944,-151.0,0.00029,7]
[359299708,1745901040958,-54887.54087218,0.00029,2]
[359299709,1745901040968,-151.0,0.00029,7]
[359299710,1745901040977,-386.64524373,0.00029,6]
[359299711,1745901040987,-260.22518954,0.00029,2]
[359299712,1745901040999,-151.0,0.00029,7]
[359299713,1745901041008,-239.373633,0.00029,7]
[359299714,1745901041018,-239.373633,0.00029,7]
[359299715,1745901041027,-162.156705,0.00029,7]
[359299716,1745901041036,-239.373633,0.00029,7]
[359299717,1745901041046,-239.373633,0.00029,7]
[359299718,1745901041056,-151.0,0.00029,7]
[359299719,1745901041066,-231.28369723,0.00029157,2]
[359299720,1745901041075,-599.86423584,0.00029278,2]
[359299721,1745901041085,-4787.36457844,0.00029521,8]
[359299722,1745901041094,-239.373633,0.00029899,7]
[359299723,1745901041104,-239.373633,0.00029899,7]
[359299724,1745901041113,-151.0,0.00029899,7]
[359299725,1745901041123,-75808.17179594,0.000299,2]
[359299726,1745901041132,-425.65161399,0.0003,2]
[359299727,1745901041142,-213.0,0.0003,2]
[359299728,1745901041151,-2000.0,0.0003,4]
[359299729,1745901041161,-6128.20891224,0.0003007,2]
[359299730,1745901041171,-1558.61,0.0003011,2]
[359299731,1745901041180,-28049.40354885,0.0003013,2]
[359299732,1745901041190,-151.0,0.0003013,7]
[359299733,1745901041200,-151.0,0.0003013,7]
[359299734,1745901041209,-151.0,0.0003013,7]
[359299735,1745901041219,-151.0,0.0003013,7]
[359299736,1745901041229,-151.0,0.0003013,7]
[359299737,1745901041239,-187.638895,0.0003013,7]
[359299738,1745901041249,-151.0,0.0003013,7]
[359299739,1745901041258,-708.060156,0.0003013,7]
[359299740,1745901041268,-708.060156,0.0003013,7]
[359299741,1745901041277,-153.580833,0.0003013,7]
[359299742,1745901041287,-447.531349,0.0003013,7]
[359299743,1745901041297,-447.531349,0.0003013,7]
[359299744,1745901041308,-151.0,0.0003013,7]
[359299745,1745901041317,-151.0,0.0003013,7]
[359299746,1745901041327,-239.373633,0.0003013,7]
[359299747,1745901041337,-151.0,0.0003013,7]
[359299748,1745901041347,-239.373633,0.0003013,7]
[359299749,1745901041357,-512.36990726,0.00030252,5]
[359299750,1745901041368,-4787.36457844,0.00030383,9]
[359299751,1745901041377,-176.62,0.00030416,2]
[359299752,1745901041387,-239.84119403,0.00030526,2]
[359299753,1745901041397,-245.0,0.00030613,2]
[359299754,1745901041407,-653.3,0.00031035,2]
[359299755,1745901041418,-4787.36457844,0.00031245,9]
[359299756,1745901041428,-599.86423584,0.00031622,15]
[359299757,1745901041438,-248.71531821,0.00031895,2]
[359299758,1745901041448,-2000.0,0.00032,4]
[359299759,1745901041457,-6128.20891224,0.00032104,2]
[359299760,1745901041467,-4787.36457844,0.00032107,10]
[359299761,1745901041477,-175.08,0.00032641,2]
[359299762,1745901041496,-200.0,0.00032765,2]
[359299763,1745901041507,-153.01,0.00032865,2]
[359299764,1745901041519,-1000.0,0.0003287,2]
[359299765,1745901041530,-4787.36457844,0.00032969,11]
[359299766,1745901041541,-200.0,0.00033151,2]
[359299767,1745901041552,-549.34,0.00033165,2]
[359299768,1745901041564,-250.0,0.00033201,2]
[359299769,1745901041578,-230.6388239,0.00033212,4]
[359299770,1745901041589,-150.0,0.0003326,2]
[359299771,1745901041599,-257.91778498,0.00033264,2]
[359299772,1745901041609,-653.3,0.00033298,2]
[359299773,1745901041620,-190.71,0.00033579,2]
[359299774,1745901041630,-150.0,0.00033738,2]
[359299775,1745901041640,-150.0,0.00033747,2]
[359299776,1745901041650,-152.0,0.00033767,3]
[359299777,1745901041660,-151.0,0.00033831,7]
[359299778,1745901041670,-151.0,0.00033831,7]
[359299779,1745901041681,-151.0,0.00033831,7]
[359299780,1745901041691,-4787.36457844,0.00033831,11]
[359299781,1745901041701,-150.0,0.0003384,2]
[359299782,1745901041711,-153.01,0.00033846,2]
[359299783,1745901041721,-150.0,0.00033917,2]
[359299784,1745901041731,-599.86423584,0.00033967,15]
[359299785,1745901041741,-2000.0,0.00034,4]
[359299786,1745901041752,-158.83,0.00034,2]
[359299787,1745901041762,-158.83,0.00034,2]
[359299788,1745901041773,-158.83,0.00034,2]
[359299789,1745901041783,-158.83,0.00034,2]
[359299790,1745901041795,-158.83,0.00034,2]
[359299791,1745901041805,-150.0,0.00034047,2]
[359299792,1745901041816,-6128.20891224,0.00034138,2]
[359299793,1745901041828,-230.0,0.00034164,2]
[359299794,1745901041839,-2000.0,0.00034197,2]
[359299795,1745901041851,-1006.49364963,0.00034199,2]
[359299796,1745901041863,-239.373633,0.00034199,7]
[359299797,1745901041874,-239.373633,0.00034199,7]
[359299798,1745901041884,-167.592517,0.00034199,7]
[359299799,1745901041896,-269.9524,0.000342,2]
[359299800,1745901041907,-3929.7216,0.000342,2]
[359299801,1745901041918,-6304.8784,0.000342,2]
[359299802,1745901041929,-14168.913,0.000342,2]
[359299803,1745901041941,-12479.983,0.000342,2]
[359299804,1745901041951,-165.36773061,0.000342,6]
[359299805,1745901041961,-154.91898603,0.000342,2]
[359299806,1745901041972,-153.988947,0.000342,7]
[359299807,1745901041982,-151.0,0.000342,7]
[359299808,1745901041992,-165.17657837,0.000342,6]
[359299809,1745901042003,-151.0,0.000342,7]
[359299810,1745901042013,-151.0,0.000342,7]
[359299811,1745901042023,-151.0,0.000342,7]
[359299812,1745901042032,-167.203536,0.000342,7]
[359299813,1745901042042,-151.0,0.000342,7]
[359299814,1745901042053,-262.058917,0.000342,7]
[359299815,1745901042063,-151.0,0.000342,7]
[359299816,1745901042072,-336.705437,0.000342,7]
[359299817,1745901042083,-336.705437,0.000342,7]
[359299818,1745901042093,-336.705437,0.000342,7]
[359299819,1745901042103,-336.705437,0.000342,7]
[359299820,1745901042113,-151.0,0.000342,7]
[359299821,1745901042123,-151.0,0.000342,7]
[359299822,1745901042132,-153.139737,0.000342,7]
[359299823,1745901042143,-151.0,0.000342,7]
[359299824,1745901042153,-151.0,0.000342,7]
[359299825,1745901042163,-216.388211,0.000342,7]
[359299826,1745901042173,-151.0,0.000342,7]
[359299827,1745901042183,-160.186576,0.000342,7]
[359299828,1745901042193,-910.836399,0.000342,7]
[359299829,1745901042203,-910.836399,0.000342,7]
[359299830,1745901042212,-910.836399,0.000342,7]
[359299831,1745901042222,-910.836399,0.000342,7]
[359299832,1745901042232,-151.0,0.000342,7]
[359299833,1745901042242,-151.0,0.000342,7]
[359299834,1745901042252,-169.957261,0.000342,7]
[359299835,1745901042262,-151.0,0.000342,7]
[359299836,1745901042272,-151.0,0.000342,7]
[359299837,1745901042282,-151.0,0.000342,7]
[359299838,1745901042292,-151.0,0.000342,7]
[359299839,1745901042302,-151.0,0.000342,7]
[359299840,1745901042312,-206.58214,0.000342,7]
[359299841,1745901042322,-151.0,0.000342,7]
[359299842,1745901042332,-162.117448,0.000342,7]
[359299843,1745901042341,-151.0,0.000342,7]
[359299844,1745901042350,-210.162848,0.000342,7]
[359299845,1745901042360,-151.0,0.000342,7]
[359299846,1745901042369,-251.577936,0.000342,7]
[359299847,1745901042379,-207.782597,0.000342,7]
[359299848,1745901042388,-207.782597,0.000342,7]
[359299849,1745901042397,-207.782597,0.000342,7]
[359299850,1745901042407,-207.782597,0.000342,7]
[359299851,1745901042416,-151.0,0.000342,7]
[359299852,1745901042426,-151.0,0.000342,7]
[359299853,1745901042435,-151.0,0.000342,7]
[359299854,1745901042445,-151.0,0.000342,7]
[359299855,1745901042454,-151.0,0.000342,7]
[359299856,1745901042464,-151.0,0.000342,7]
[359299857,1745901042473,-708.060156,0.000342,7]
[359299858,1745901042483,-708.060156,0.000342,7]
[359299859,1745901042492,-708.060156,0.000342,7]
[359299860,1745901042502,-708.060156,0.000342,7]
[359299861,1745901042512,-447.531349,0.000342,7]
[359299862,1745901042522,-447.531349,0.000342,7]
[359299863,1745901042532,-447.531349,0.000342,7]
[359299864,1745901042541,-447.531349,0.000342,7]
[359299865,1745901042552,-151.0,0.000342,7]
[359299866,1745901042564,-151.0,0.000342,7]
[359299867,1745901042575,-151.0,0.000342,7]
[359299868,1745901042586,-151.0,0.000342,7]
[359299869,1745901042597,-239.373633,0.000342,7]
[359299870,1745901042610,-151.0,0.000342,7]
[359299871,1745901042621,-171.667941,0.000342,7]
[359299872,1745901042632,-239.373633,0.000342,7]
[359299873,1745901042645,-500.79231643,0.00034273,5]
[359299874,1745901042657,-500.0,0.00034273,5]
[359299875,1745901042668,-151.0,0.00034288,7]
[359299876,1745901042679,-151.0,0.00034288,7]
[359299877,1745901042689,-151.0,0.00034288,7]
[359299878,1745901042699,-164.054236,0.00034288,7]
[359299879,1745901042710,-172.159424,0.00034288,7]
[359299880,1745901042721,-151.0,0.00034288,7]
[359299881,1745901042732,-708.060156,0.00034288,7]
[359299882,1745901042743,-708.060156,0.00034288,7]
[359299883,1745901042754,-447.531349,0.00034288,7]
[359299884,1745901042765,-447.531349,0.00034288,7]
[359299885,1745901042776,-151.0,0.00034288,7]
[359299886,1745901042786,-151.0,0.00034289,7]
[359299887,1745901042795,-151.0,0.00034289,7]
[359299888,1745901042805,-708.060156,0.00034289,7]
[359299889,1745901042815,-708.060156,0.00034289,7]
[359299890,1745901042825,-447.531349,0.00034289,7]
[359299891,1745901042835,-447.531349,0.00034289,7]
[359299892,1745901042845,-151.0,0.00034289,7]
[359299893,1745901042857,-336.705437,0.0003429,7]
[359299894,1745901042868,-336.705437,0.0003429,7]
[359299895,1745901042879,-336.705437,0.0003429,7]
[359299896,1745901042890,-336.705437,0.0003429,7]
[359299897,1745901042901,-151.0,0.0003429,7]
[359299898,1745901042912,-157.626599,0.0003429,7]
[359299899,1745901042923,-910.836399,0.0003429,7]
[359299900,1745901042934,-910.836399,0.0003429,7]
[359299901,1745901042944,-910.836399,0.0003429,7]
[359299902,1745901042953,-910.836399,0.0003429,7]
[359299903,1745901042963,-151.0,0.0003429,7]
[359299904,1745901042973,-151.0,0.0003429,7]
[359299905,1745901042984,-207.782597,0.0003429,7]
[359299906,1745901042994,-207.782597,0.0003429,7]
[359299907,1745901043004,-207.782597,0.0003429,7]
[359299908,1745901043013,-207.782597,0.0003429,7]
[359299909,1745901043023,-151.0,0.0003429,7]
[359299910,1745901043033,-151.0,0.0003429,7]
[359299911,1745901043042,-151.0,0.0003429,7]
[359299912,1745901043053,-151.0,0.0003429,7]
[359299913,1745901043063,-151.0,0.0003429,7]
[359299914,1745901043072,-151.0,0.0003429,7]
[359299916,1745901043082,-708.060156,0.0003429,7]
[359299918,1745901043092,-708.060156,0.0003429,7]
[359299919,1745901043101,-708.060156,0.0003429,7]
[359299921,1745901043110,-708.060156,0.0003429,7]
[359299924,1745901043120,-447.531349,0.0003429,7]
[359299925,1745901043130,-447.531349,0.0003429,7]
[359299926,1745901043139,-447.531349,0.0003429,7]
[359299927,1745901043149,-447.531349,0.0003429,7]
[359299928,1745901043159,-1000.0,0.0003429,28]
[359299929,1745901043168,-1000.0,0.0003429,28]
[359299930,1745901043178,-1000.0,0.0003429,28]
[359299931,1745901043188,-1000.0,0.0003429,28]
[359299932,1745901043197,-1000.0,0.0003429,28]
[359299933,1745901043207,-1000.0,0.0003429,28]
[359299934,1745901043217,-1000.0,0.0003429,28]
[359299935,1745901043226,-1000.0,0.0003429,28]
[359299936,1745901043306,-1000.0,0.0003429,28]
[359299937,1745901043316,-1000.0,0.0003429,28]
[359299938,1745901043326,-1000.0,0.0003429,28]
[359299939,1745901043335,-1000.0,0.0003429,28]
[359299940,1745901043344,-1000.0,0.0003429,28]
[359299941,1745901043354,-1000.0,0.0003429,28]
[359299942,1745901043363,-1000.0,0.0003429,28]
[359299943,1745901043372,-1000.0,0.0003429,28]
[359299944,1745901043381,-1000.0,0.0003429,28]
[359299945,1745901043391,-1000.0,0.0003429,28]
[359299946,1745901043400,-1000.0,0.0003429,28]
[359299947,1745901043409,-1000.0,0.0003429,28]
[359299948,1745901043419,-1000.0,0.0003429,28]
[359299949,1745901043428,-1000.0,0.0003429,28]
[359299950,1745901043437,-1000.0,0.0003429,28]
[359299951,1745901043446,-1000.0,0.0003429,28]
[359299952,1745901043455,-1000.0,0.0003429,28]
[359299953,1745901043465,-1000.0,0.0003429,28]
[359299954,1745901043474,-1000.0,0.0003429,28]
[359299955,1745901043484,-1000.0,0.0003429,28]
[359299956,1745901043494,-1000.0,0.0003429,28]
[359299957,1745901043503,-1000.0,0.0003429,28]
[359299958,1745901043517,-1000.0,0.0003429,28]
[359299959,1745901043526,-1000.0,0.0003429,28]
[359299960,1745901043536,-1000.0,0.0003429,28]
[359299961,1745901043545,-1000.0,0.0003429,28]
[359299963,1745901043556,-607.359626,0.0003429,28]
[359299965,1745901043566,-151.0,0.0003429,7]
[359299966,1745901043577,-151.0,0.0003429,7]
[359299967,1745901043586,-151.0,0.0003429,7]
[359299968,1745901043595,-151.0,0.0003429,7]
[359299969,1745901043604,-158.83,0.0003429,2]
[359299970,1745901043614,-151.0,0.00034298,7]
[359299971,1745901043623,-151.0,0.00034298,7]
[359299972,1745901043632,-151.0,0.00034298,7]
[359299973,1745901043644,-155.389591,0.00034298,7]
[359299974,1745901043653,-151.0,0.00034298,7]
[359299975,1745901043662,-151.0,0.00034298,7]
[359299976,1745901043672,-151.0,0.00034298,7]
[359299977,1745901043681,-153.546988,0.00034298,7]
[359299978,1745901043690,-336.705437,0.00034298,7]
[359299979,1745901043700,-336.705437,0.00034298,7]
[359299980,1745901043709,-336.705437,0.00034298,7]
[359299981,1745901043718,-336.705437,0.00034298,7]
[359299982,1745901043727,-151.0,0.00034298,7]
[359299983,1745901043736,-151.0,0.00034298,7]
[359299984,1745901043746,-910.836399,0.00034298,7]
[359299985,1745901043755,-910.836399,0.00034298,7]
[359299986,1745901043764,-910.836399,0.00034298,7]
[359299987,1745901043773,-910.836399,0.00034298,7]
[359299988,1745901043783,-151.0,0.00034298,7]
[359299989,1745901043792,-151.0,0.00034298,7]
[359299990,1745901043802,-207.782597,0.00034298,7]
[359299991,1745901043811,-207.782597,0.00034298,7]
[359299992,1745901043821,-207.782597,0.00034298,7]
[359299994,1745901043830,-207.782597,0.00034298,7]
[359299996,1745901043839,-151.0,0.00034299,7]
[359299997,1745901043849,-151.0,0.00034299,7]
[359299998,1745901043859,-166.195864,0.00034299,7]
[359299999,1745901043869,-151.0,0.00034299,7]
[359300000,1745901043878,-156.753523,0.00034299,7]
[359300001,1745901043888,-151.0,0.00034299,7]
[359300002,1745901043900,-159.684673,0.00034299,7]
[359300003,1745901043910,-151.0,0.00034299,7]
[359300004,1745901043922,-151.0,0.00034299,7]
[359300005,1745901043931,-155.555063,0.00034299,7]
[359300006,1745901043941,-155.555063,0.00034299,7]
[359300007,1745901043950,-156.898217,0.00034299,7]
[359300008,1745901043959,-151.0,0.00034299,7]
[359300009,1745901043969,-151.0,0.00034299,7]
[359300010,1745901043978,-158.595045,0.00034299,7]
[359300011,1745901043988,-151.0,0.00034299,7]
[359300012,1745901043997,-151.0,0.00034299,7]
[359300013,1745901044007,-151.0,0.00034299,7]
[359300014,1745901044016,-151.0,0.00034299,7]
[359300015,1745901044025,-151.588304,0.00034299,7]
[359300016,1745901044034,-151.0,0.00034299,7]
[359300017,1745901044043,-151.0,0.00034299,7]
[359300018,1745901044053,-151.0,0.00034299,7]
[359300019,1745901044063,-277.187768,0.00034299,7]
[359300020,1745901044072,-277.187768,0.00034299,7]
[359300021,1745901044081,-301.209544,0.00034299,7]
[359300022,1745901044090,-301.209544,0.00034299,7]
[359300023,1745901044099,-277.187768,0.00034299,7]
[359300024,1745901044109,-277.187768,0.00034299,7]
[359300025,1745901044118,-179.687567,0.00034299,7]
[359300026,1745901044127,-495.461919,0.00034299,7]
[359300027,1745901044137,-154.684887,0.00034299,7]
[359300028,1745901044146,-151.0,0.00034299,7]
[359300029,1745901044155,-495.461919,0.00034299,7]
[359300030,1745901044165,-153.409693,0.00034299,7]
[359300031,1745901044174,-151.0,0.00034299,7]
[359300032,1745901044183,-336.705437,0.00034299,7]
[359300033,1745901044193,-336.705437,0.00034299,7]
[359300034,1745901044202,-336.705437,0.00034299,7]
[359300035,1745901044211,-336.705437,0.00034299,7]
[359300036,1745901044221,-151.0,0.00034299,7]
[359300037,1745901044230,-910.836399,0.00034299,7]
[359300038,1745901044239,-910.836399,0.00034299,7]
[359300039,1745901044249,-910.836399,0.00034299,7]
[359300040,1745901044258,-910.836399,0.00034299,7]
[359300041,1745901044267,-151.0,0.00034299,7]
[359300042,1745901044276,-151.0,0.00034299,7]
[359300043,1745901044286,-207.782597,0.00034299,7]
[359300044,1745901044296,-207.782597,0.00034299,7]
[359300045,1745901044305,-207.782597,0.00034299,7]
[359300046,1745901044315,-207.782597,0.00034299,7]
[359300047,1745901044324,-267.556965,0.00034299,7]
[359300048,1745901044333,-151.0,0.00034299,7]
[359300049,1745901044343,-165.048173,0.00034299,7]
[359300050,1745901044352,-708.060156,0.00034299,7]
[359300051,1745901044362,-708.060156,0.00034299,7]
[359300052,1745901044371,-447.531349,0.00034299,7]
[359300053,1745901044380,-447.531349,0.00034299,7]
[359300054,1745901044389,-151.0,0.00034299,7]
[359300055,1745901044399,-152510.2868443,0.000343,7]
[359300056,1745901044408,-1000.0,0.000343,7]
[359300057,1745901044417,-1000.0,0.000343,6]
[359300058,1745901044427,-1000.0,0.000343,5]
[359300059,1745901044436,-1017.0,0.000343,5]
[359300060,1745901044445,-1000.0,0.000343,4]
[359300061,1745901044455,-1000.0,0.000343,4]
[359300062,1745901044464,-1000.0,0.000343,4]
[359300063,1745901044473,-1000.0,0.000343,3]
[359300064,1745901044483,-1000.0,0.000343,2]
[359300065,1745901044492,-1000.0,0.000343,2]
[359300066,1745901044501,-151.0,0.000343,7]
[359300067,1745901044510,-151.0,0.000343,7]
[359300068,1745901044519,-151.0,0.000343,7]
[359300069,1745901044528,-151.0,0.000343,7]
[359300070,1745901044538,-151.0,0.000343,7]
[359300071,1745901044546,-153.894868,0.000343,7]
[359300072,1745901044556,-14548.0051,0.000343,2]
[359300073,1745901044567,-151.0,0.000343,7]
[359300074,1745901044576,-154.241894,0.000343,7]
[359300075,1745901044585,-151.0,0.000343,7]
[359300076,1745901044595,-151.0,0.000343,7]
[359300077,1745901044604,-151.0,0.000343,7]
[359300078,1745901044614,-165.037718,0.000343,7]
[359300079,1745901044623,-167.514957,0.000343,7]
[359300080,1745901044632,-153.008777,0.000343,7]
[359300081,1745901044643,-155.235884,0.000343,7]
[359300082,1745901044653,-156.502632,0.000343,7]
[359300083,1745901044662,-151.0,0.000343,7]
[359300084,1745901044671,-151.0,0.000343,7]
[359300085,1745901044680,-151.0,0.000343,7]
[359300086,1745901044689,-184.972894,0.000343,7]
[359300087,1745901044699,-151.0,0.000343,7]
[359300088,1745901044707,-151.0,0.000343,7]
[359300089,1745901044717,-212.612496,0.000343,7]
[359300090,1745901044726,-151.0,0.000343,7]
[359300091,1745901044736,-151.0,0.000343,7]